bitfinex/quotes_SOLUSD_20260202
["timestamp","ask_amount","ask_price","bid_price","bid_amount"]
[1770018680631,8.67484239,101.66,101.61,8.67484239]
[1770018680832,12.93088386,101.66,101.61,12.93295581]
[1770018681018,12.93088386,101.66,101.6,0.28432314]
[1770018681019,8.67484239,101.64,101.6,0.28432314]
[1770018681424,12.93088386,101.62,101.57,4.25811342]
[1770018681627,12.95011324,101.68,101.58,4.54243656]
[1770018681628,4.25604147,101.64,101.58,4.54243656]
[1770018681823,12.93088386,101.65,101.61,0.28432314]
[1770018682121,4.25604147,101.66,101.61,13.21727895]
[1770018682329,12.93088386,101.66,101.61,13.21727895]
[1770018682526,12.96827883,101.66,101.61,4.54243656]
[1770018682720,4.25604147,101.64,101.59,12.97035078]
[1770018682921,12.96827883,101.64,101.6,0.28432314]
[1770018683135,4.25604147,101.64,101.6,8.9965605]
[1770018683342,4.25604147,101.64,101.6,0.28432314]
[1770018683815,4.25604147,101.64,101.6,8.9965605]
[1770018684014,12.96827883,101.68,101.62,13.25467392]
[1770018684221,4.25604147,101.67,101.63,8.71223736]
[1770018685037,4.25604147,101.67,101.64,8.71223736]
[1770018685337,4.45604147,101.71,101.67,0.28432314]
[1770018685534,4.45604147,101.71,101.68,8.71223736]
[1770018685729,6.47078814,101.73,101.7,8.71223736]
[1770018686038,19.43906697,101.73,101.69,0.28432314]
[1770018686254,6.47078814,101.73,101.7,8.71223736]
[1770018686432,4.25604147,101.77,101.72,8.71223736]
[1770018686621,4.25604147,101.77,101.73,8.71223736]
[1770018686821,4.25604147,101.77,101.73,0.28432314]
[1770018687135,4.25604147,101.77,101.73,8.9965605]
[1770018687833,4.25604147,101.77,101.73,0.28432314]
[1770018688042,12.96827883,101.76,101.72,0.28432314]
[1770018688217,4.25604147,101.76,101.72,8.9965605]
[1770018688622,8.71223736,101.78,101.73,8.71223736]
[1770018688623,12.96827883,101.78,101.73,8.71223736]
[1770018689038,4.25604147,101.78,101.74,8.71223736]
[1770018691323,4.25604147,101.78,101.73,8.71223736]
[1770018691527,4.25604147,101.76,101.72,8.9965605]
[1770018691721,4.25604147,101.76,101.72,8.71223736]
[1770018692742,4.25604147,101.76,101.71,0.28432314]
[1770018693039,15.96527085,101.79,101.7,8.71223736]
[1770018693040,4.25604147,101.74,101.7,8.71223736]
[1770018693237,4.25604147,101.73,101.68,8.71223736]
[1770018693542,4.25604147,101.73,101.69,8.71223736]
[1770018693840,12.96827883,101.73,101.68,8.71223736]
[1770018695031,4.25604147,101.73,101.69,8.85439893]
[1770018697146,4.27527085,101.77,101.72,8.71223736]
[1770018697147,4.25604147,101.76,101.72,8.71223736]
[1770018697954,4.25604147,101.76,101.73,8.71223736]
[1770018698256,4.39834009,101.75,101.71,8.71223736]
[1770018698422,4.39834009,101.74,101.7,8.71223736]
[1770018698628,4.39834009,101.73,101.69,8.9965605]
[1770018698846,13.11057745,101.75,101.7,8.71223736]
[1770018699029,4.39834009,101.75,101.72,8.71223736]
[1770018699361,13.11057745,101.77,101.72,8.71223736]
[1770018699537,4.39834009,101.76,101.72,8.71223736]
[1770018700053,4.39834009,101.76,101.73,8.71223736]
[1770018700650,4.39834009,101.78,101.74,8.71223736]
[1770018700964,4.39834009,101.77,101.74,8.71223736]
[1770018702148,20.40223736,101.79,101.74,8.71223736]
[1770018702149,11.69,101.79,101.76,8.71223736]
[1770018702331,11.69,101.79,101.77,8.71223736]
[1770018703250,4.39834009,101.81,101.77,8.71223736]
[1770018703449,4.39834009,101.8,101.76,8.71223736]
[1770018703752,4.39834009,101.78,101.74,8.71223736]
[1770018704832,4.39834009,101.78,101.75,8.71223736]
[1770018705525,4.39834009,101.78,101.74,8.71223736]
[1770018705724,4.39834009,101.78,101.75,8.71223736]
[1770018705929,4.39834009,101.8,101.77,8.71223736]
[1770018707051,4.39834009,101.8,101.74,0.67417007]
[1770018707242,4.39834009,101.8,101.76,8.71223736]
[1770018707943,4.39834009,101.8,101.77,8.71223736]
[1770018708145,4.39834009,101.8,101.76,8.71223736]
[1770018708950,4.48460901,101.79,101.75,8.9965605]
[1770018709146,4.48460901,101.78,101.74,8.71223736]
[1770018710168,4.48460901,101.78,101.73,8.9965605]
[1770018710336,4.48460901,101.76,101.72,27.32]
[1770018710543,4.48460901,101.76,101.72,36.03223736]
[1770018710767,4.48460901,101.78,101.75,8.71223736]
[1770018710941,4.48460901,101.8,101.77,8.71223736]
[1770018711446,4.48460901,101.8,101.78,8.71223736]
[1770018711643,4.48460901,101.8,101.76,8.71223736]
[1770018713248,4.48460901,101.79,101.75,8.9965605]
[1770018714370,4.48460901,101.79,101.76,8.71223736]
[1770018714672,4.48460901,101.78,101.72,27.32]
[1770018714970,4.48460901,101.77,101.73,8.85439893]
[1770018715554,4.48460901,101.77,101.74,8.71223736]
[1770018716948,4.48460901,101.77,101.75,8.71223736]
[1770018717161,4.48460901,101.78,101.75,8.71223736]
[1770018717360,4.48460901,101.78,101.74,8.71223736]
[1770018718858,4.48460901,101.78,101.75,8.71223736]
[1770018719371,4.48460901,101.78,101.74,8.71223736]
[1770018720251,4.48460901,101.78,101.76,8.71223736]
[1770018720454,4.48460901,101.8,101.76,8.71223736]
[1770018720767,4.48460901,101.8,101.77,8.71223736]
[1770018721158,4.48460901,101.8,101.75,0.28432314]
[1770018721159,4.48460901,101.79,101.75,8.9965605]
[1770018721663,4.48460901,101.76,101.7,4.94944092]
[1770018721848,4.48460901,101.74,101.7,8.71223736]
[1770018722050,4.27527085,101.79,101.67,8.71223736]
[1770018722051,4.48460901,101.71,101.67,8.71223736]
[1770018722255,12.98750821,101.76,101.65,8.71223736]
[1770018722256,4.48460901,101.69,101.65,8.71223736]
[1770018722451,4.48460901,101.68,101.64,8.71223736]
[1770018722851,8.71223736,101.7,101.65,8.71223736]
[1770018723053,4.48460901,101.69,101.65,8.71223736]
[1770018723460,4.48460901,101.69,101.63,10.5134633]
[1770018723461,13.19684637,101.71,101.66,8.71223736]
[1770018723671,4.48460901,101.7,101.66,8.71223736]
[1770018725378,4.48460901,101.69,101.65,8.85439893]
[1770018725586,8.71223736,101.76,101.66,8.85439893]
[1770018725587,4.48460901,101.71,101.66,8.85439893]
[1770018725752,8.71223736,101.7,101.65,8.71223736]
[1770018725955,4.48460901,101.69,101.66,0.14216157]
[1770018726154,17.47211722,101.73,101.68,8.71223736]
[1770018726369,11.01582993,101.69,101.68,8.71223736]
[1770018726572,11.01582993,101.69,101.68,8.9965605]
[1770018727076,4.5,101.68,101.63,8.71223736]
[1770018727277,4.5,101.68,101.64,8.71223736]
[1770018729485,8.73532813,101.69,101.67,8.9965605]
[1770018729782,8.73532813,101.69,101.67,8.71223736]
[1770018730498,8.73532813,101.69,101.68,8.9965605]
[1770018730665,8.73532813,101.69,101.67,8.71223736]
[1770018730990,8.73532813,101.69,101.65,27.32]
[1770018730991,13.23532813,101.69,101.66,8.71223736]
[1770018731166,4.5,101.68,101.65,0.28432314]
[1770018731373,4.5,101.68,101.62,42.62130133]
[1770018731374,4.5,101.67,101.62,27.42]
[1770018731563,13.21223736,101.65,101.62,0.1]
[1770018731756,4.5,101.64,101.62,0.1]
[1770018732282,4.5,101.66,101.62,8.81223736]
[1770018732482,4.5,101.66,101.62,0.1]
[1770018732788,4.5,101.65,101.62,0.1]
[1770018734170,4.5,101.67,101.63,8.71223736]
[1770018734876,4.5,101.67,101.64,8.71223736]
[1770018735081,4.5,101.68,101.65,8.71223736]
[1770018735279,4.5,101.68,101.62,10.08264238]
[1770018735280,4.5,101.68,101.64,8.71223736]
[1770018735784,4.5,101.68,101.65,0.28432314]
[1770018735982,8.73532813,101.69,101.66,8.85439893]
[1770018736191,8.73532813,101.69,101.68,8.9965605]
[1770018736491,4.5,101.72,101.68,8.9965605]
[1770018737116,4.5,101.72,101.68,8.71223736]
[1770018737393,4.5,101.7,101.66,8.9965605]
[1770018737885,4.5,101.72,101.68,8.9965605]
[1770018738091,4.5,101.72,101.69,8.71223736]
[1770018739577,4.5,101.72,101.68,0.28432314]
[1770018739578,4.5,101.72,101.68,8.9965605]
[1770018739982,4.5,101.72,101.68,8.85439893]
[1770018740992,4.5,101.72,101.69,8.71223736]
[1770018741687,4.5,101.72,101.68,8.85439893]
[1770018741885,4.27527085,101.76,101.71,8.9965605]
[1770018741886,4.5,101.75,101.71,8.9965605]
[1770018743409,4.5,101.75,101.72,8.71223736]
[1770018743785,4.5,101.75,101.71,8.9965605]
[1770018744393,4.5,101.75,101.71,8.69452712]
[1770018745589,4.5,101.74,101.7,8.69452712]
[1770018745797,4.5,101.73,101.69,8.97885026]
[1770018746103,4.5,101.73,101.69,8.83668869]
[1770018746402,4.5,101.73,101.67,4.27527085]
[1770018746403,4.5,101.71,101.68,8.83668869]
[1770018746806,4.5,101.71,101.67,8.69452712]
[1770018746978,4.5,101.73,101.68,8.69452712]
[1770018747179,4.5,101.72,101.68,8.69452712]
[1770018747997,4.5,101.71,101.67,8.69452712]
[1770018748188,4.5,101.7,101.66,8.69452712]
[1770018748392,8.69452712,101.74,101.68,8.97885026]
[1770018748589,8.69452712,101.73,101.69,0.28432314]
[1770018748897,4.5,101.72,101.68,0.28432314]
[1770018749488,4.5,101.71,101.67,8.69452712]
[1770018749683,4.5,101.71,101.68,0.28432314]
[1770018749998,4.5,101.68,101.62,8.79452712]
[1770018750316,13.19452712,101.68,101.63,8.69452712]
[1770018750479,4.5,101.7,101.65,8.69452712]
[1770018750686,4.5,101.71,101.67,8.69452712]
[1770018750992,4.5,101.71,101.68,8.69452712]
[1770018751295,4.5,101.73,101.69,8.69452712]
[1770018751691,4.5,101.73,101.68,8.69452712]
[1770018752193,4.5,101.72,101.68,8.69452712]
[1770018752697,4.5,101.71,101.67,0.28432314]
[1770018752904,4.5,101.71,101.67,8.69452712]
[1770018753081,4.5,101.68,101.64,8.69452712]
[1770018753800,13.19452712,101.72,101.67,8.69452712]
[1770018754007,4.5,101.72,101.69,8.69452712]
[1770018754300,4.5,101.71,101.67,8.69452712]
[1770018754681,4.5,101.71,101.68,8.69452712]
[1770018754885,4.5,101.71,101.67,8.69452712]
[1770018755181,4.5,101.71,101.66,8.83668869]
[1770018755583,4.5,101.71,101.67,8.69452712]
[1770018755782,4.5,101.71,101.66,8.83668869]
[1770018756499,4.5,101.71,101.67,8.69452712]
[1770018757406,4.5,101.71,101.68,8.69452712]
[1770018757704,4.5,101.7,101.62,9.94024563]
[1770018757908,4.5,101.69,101.65,8.69452712]
[1770018758207,4.5,101.71,101.67,8.69452712]
[1770018758390,4.5,101.71,101.68,8.69452712]
[1770018758786,4.5,101.71,101.67,8.69452712]
[1770018759398,4.5,101.71,101.68,8.69452712]
[1770018759710,4.5,101.71,101.67,8.69452712]
[1770018760494,4.5,101.7,101.65,8.69452712]
[1770018760812,4.5,101.68,101.64,27.34]
[1770018761317,4.5,101.67,101.64,27.34]
[1770018761487,4.5,101.69,101.64,36.03452712]
[1770018761991,4.5,101.69,101.65,8.69452712]
[1770018763208,4.5,101.68,101.64,36.03452712]
[1770018765306,4.5,101.72,101.67,8.69452712]
[1770018765624,4.5,101.72,101.69,8.69452712]
[1770018766310,4.5,101.71,101.67,8.69452712]
[1770018766514,4.5,101.69,101.65,8.69452712]
[1770018766896,4.5,101.69,101.66,8.69452712]
[1770018767713,4.5,101.71,101.68,8.69452712]
[1770018767915,4.5,101.71,101.69,8.69452712]
[1770018768210,4.5,101.73,101.7,8.69452712]
[1770018768689,4.5,101.73,101.69,8.69452712]
[1770018769806,4.5,101.71,101.65,31.61527085]
[1770018770110,4.5,101.7,101.66,8.69452712]
[1770018770301,4.5,101.69,101.65,36.03452712]
[1770018770817,4.5,101.69,101.66,8.69452712]
[1770018772521,8.69452712,101.72,101.67,8.69452712]
[1770018772522,4.5,101.71,101.67,8.69452712]
[1770018772701,4.5,101.71,101.66,8.69452712]
[1770018773102,4.5,101.7,101.66,8.69452712]
[1770018773301,4.5,101.7,101.67,8.69452712]
[1770018773501,4.5,101.7,101.65,27.34]
[1770018773708,4.5,101.7,101.66,8.69452712]
[1770018774003,36.03452712,101.76,101.69,8.69452712]
[1770018774004,4.5,101.72,101.69,8.69452712]
[1770018776629,4.5,101.72,101.67,8.69452712]
[1770018776807,4.5,101.71,101.67,8.69452712]
[1770018777732,4.5,101.7,101.63,9.83920982]
[1770018777899,4.5,101.69,101.65,8.69452712]
[1770018779130,4.5,101.69,101.64,8.69452712]
[1770018779624,4.5,101.69,101.65,8.69452712]
[1770018779923,4.5,101.68,101.64,8.69452712]
[1770018780222,8.69452712,101.68,101.63,8.69452712]
[1770018780522,4.5,101.66,101.63,8.69452712]
[1770018781303,67.2,101.7,101.64,8.83668869]
[1770018781503,4.5,101.69,101.66,8.69452712]
[1770018781916,4.5,101.69,101.62,32.80086188]
[1770018782126,4.5,101.69,101.65,8.69452712]
[1770018782622,4.5,101.67,101.63,8.69452712]
[1770018783617,4.5,101.67,101.64,8.69452712]
[1770018784127,4.5,101.69,101.66,8.69452712]
[1770018784326,4.5,101.71,101.67,8.69452712]
[1770018784712,4.5,101.71,101.65,0.28432314]
[1770018784926,13.19452712,101.71,101.66,8.69452712]
[1770018785132,4.5,101.7,101.66,8.69452712]
[1770018785513,4.5,101.7,101.67,8.69452712]
[1770018786215,4.5,101.7,101.65,0.28432314]
[1770018786421,4.5,101.69,101.65,8.69452712]
[1770018786630,4.5,101.69,101.64,8.69452712]
[1770018786923,4.5,101.68,101.64,8.69452712]
[1770018787106,62.7,101.71,101.66,8.69452712]
[1770018787107,4.5,101.7,101.66,8.69452712]
[1770018788230,4.5,101.7,101.64,0.28432314]
[1770018788231,4.5,101.7,101.65,8.69452712]
[1770018788424,4.5,101.69,101.65,8.69452712]
[1770018789319,4.5,101.69,101.64,0.28432314]
[1770018789320,4.5,101.68,101.64,8.69452712]
[1770018789637,13.23,101.67,101.63,8.97885026]
[1770018789826,13.23,101.67,101.64,8.69452712]
[1770018790928,4.5,101.66,101.62,27.44]
[1770018791120,4.5,101.66,101.63,8.69452712]
[1770018791531,8.73,101.67,101.65,8.69452712]
[1770018791717,8.73,101.67,101.66,8.69452712]
[1770018792317,62.7,101.7,101.66,8.69452712]
[1770018792635,4.5,101.71,101.68,8.69452712]
[1770018792840,4.5,101.71,101.66,0.28432314]
[1770018792841,4.5,101.71,101.67,8.69452712]
[1770018794519,4.5,101.71,101.68,8.69452712]
[1770018795843,8.69452712,101.74,101.7,8.69452712]
[1770018795844,4.5,101.74,101.7,8.69452712]
[1770018796139,4.5,101.73,101.69,8.69452712]
[1770018796328,4.5,101.73,101.7,8.69452712]
[1770018796728,4.5,101.73,101.69,8.69452712]
[1770018797128,4.5,101.73,101.65,29.95433625]
[1770018797129,4.5,101.71,101.65,0.14216157]
[1770018797435,4.5,101.72,101.68,8.69452712]
[1770018797938,4.5,101.71,101.66,0.14216157]
[1770018798139,4.5,101.71,101.65,8.69452712]
[1770018798440,4.5,101.69,101.65,8.69452712]
[1770018799015,4.5,101.68,101.64,8.97885026]
[1770018799916,4.5,101.68,101.64,8.83668869]
[1770018800120,4.5,101.68,101.65,8.69452712]
[1770018800338,4.5,101.7,101.67,8.69452712]
[1770018801136,4.5,101.72,101.68,8.69452712]
[1770018802033,4.5,101.72,101.69,8.69452712]
[1770018803533,4.5,101.72,101.68,0.28432314]
[1770018803736,4.5,101.7,101.66,8.69452712]
[1770018804128,4.5,101.69,101.65,8.69452712]
[1770018804323,13.19452712,101.69,101.64,8.69452712]
[1770018804525,4.5,101.68,101.64,8.70636168]
[1770018805447,4.5,101.69,101.65,8.70636168]
[1770018807043,4.5,101.69,101.63,10.1237619]
[1770018807242,4.5,101.69,101.66,8.70636168]
[1770018808138,4.5,101.71,101.67,8.70636168]
[1770018808537,4.5,101.7,101.66,8.70636168]
[1770018808842,4.5,101.7,101.67,8.70636168]
[1770018809244,4.5,101.7,101.66,8.70636168]
[1770018809832,4.5,101.7,101.67,8.70636168]
[1770018811048,4.5,101.73,101.68,8.70636168]
[1770018811256,4.5,101.74,101.7,8.70636168]
[1770018812062,4.5,101.74,101.67,31.95092596]
[1770018812232,4.27527085,101.76,101.68,8.70636168]
[1770018812233,4.43849567,101.72,101.68,8.70636168]
[1770018812749,4.43849567,101.71,101.67,8.70636168]
[1770018812956,4.43849567,101.7,101.66,13.0329645]
[1770018813852,4.43849567,101.7,101.67,8.70636168]
[1770018814844,4.43849567,101.7,101.66,13.0329645]
[1770018815252,4.43849567,101.7,101.67,8.70636168]
[1770018816339,4.43849567,101.73,101.69,8.70636168]
[1770018818955,4.43849567,101.73,101.71,8.70636168]
[1770018819752,4.30990144,101.75,101.71,8.70636168]
[1770018820647,4.30990144,101.76,101.72,8.70636168]
[1770018821256,4.30990144,101.76,101.73,8.70636168]
[1770018821968,4.30990144,101.76,101.74,8.70636168]
[1770018822453,4.30990144,101.78,101.74,8.70636168]
[1770018822757,4.30990144,101.78,101.71,9.83187421]
[1770018822758,4.30990144,101.79,101.75,12.91585732]
[1770018822943,0.2,101.8,101.78,8.70636168]
[1770018823256,4.50990144,101.82,101.79,8.70636168]
[1770018823456,4.30990144,101.81,101.77,8.70636168]
[1770018823848,4.30990144,101.81,101.78,8.70636168]
[1770018824349,4.30990144,101.81,101.77,8.70636168]
[1770018824748,8.90636168,101.82,101.75,36.04636168]
[1770018824749,4.30990144,101.79,101.75,36.04636168]
[1770018824952,4.30990144,101.77,101.73,8.70636168]
[1770018826445,4.30990144,101.78,101.74,8.70636168]
[1770018827864,4.22964901,101.8,101.76,8.70636168]
[1770018828064,4.22964901,101.8,101.77,8.70636168]
[1770018828952,4.42964901,101.82,101.78,8.70636168]
[1770018829350,4.42964901,101.82,101.79,8.70636168]
[1770018829548,0.2,101.82,101.8,8.70636168]
[1770018829756,4.42964901,101.82,101.78,13.00636168]
[1770018829955,4.42964901,101.82,101.78,8.70636168]
[1770018830148,13.13601069,101.82,101.78,8.70636168]
[1770018830854,4.42964901,101.82,101.78,8.70636168]
[1770018831041,4.42964901,101.82,101.76,8.70636168]
[1770018831042,4.22964901,101.8,101.76,8.70636168]
[1770018831466,4.22964901,101.8,101.75,13.00636168]
[1770018831467,4.22964901,101.79,101.75,13.00636168]
[1770018831975,4.22964901,101.8,101.76,8.70636168]
[1770018832272,4.42964901,101.82,101.78,8.70636168]
[1770018833282,0.2,101.82,101.79,8.70636168]
[1770018833483,19.49143027,101.87,101.81,13.00636168]
[1770018833773,10.78506859,101.87,101.83,8.70636168]
[1770018834476,4.22964901,101.86,101.83,8.70636168]
[1770018834658,4.22964901,101.86,101.82,8.70636168]
[1770018834971,4.22964901,101.86,101.83,8.70636168]
[1770018835169,12.93601069,101.86,101.81,12.60636168]
[1770018835473,4.22964901,101.84,101.8,8.99068482]
[1770018835660,4.22964901,101.84,101.8,12.89068482]
[1770018835970,19.49143027,101.87,101.82,12.60636168]
[1770018836160,10.78506859,101.87,101.84,8.70636168]
[1770018836363,10.78506859,101.87,101.83,8.70636168]
[1770018836869,10.78506859,101.87,101.84,8.70636168]
[1770018837178,4.42964901,101.87,101.84,8.70636168]
[1770018838260,4.42964901,101.87,101.83,12.60636168]
[1770018839877,4.42964901,101.87,101.83,3.9]
[1770018840070,4.42964901,101.87,101.84,8.70636168]
[1770018840569,0.2,101.87,101.85,8.70636168]
[1770018840766,4.22964901,101.9,101.86,8.70636168]
[1770018840961,0.2,101.91,101.87,3.7]
[1770018841168,4.22964901,101.9,101.86,8.99068482]
[1770018841355,4.22964901,101.87,101.83,12.40636168]
[1770018841752,4.22964901,101.87,101.83,8.70636168]
[1770018841953,4.22964901,101.87,101.82,27.3]
[1770018841954,12.93601069,101.87,101.82,36.00636168]
[1770018842153,12.93601069,101.89,101.84,8.70636168]
[1770018842383,4.22964901,101.89,101.85,12.69068482]
[1770018842554,0.2,101.91,101.88,8.70636168]
[1770018842754,4.42964901,101.91,101.88,8.70636168]
[1770018843953,4.42964901,101.91,101.85,0.28432314]
[1770018844174,4.22964901,101.88,101.84,8.70636168]
[1770018844371,4.22964901,101.87,101.83,8.70636168]
[1770018844968,4.22964901,101.86,101.82,12.40636168]
[1770018845360,12.93601069,101.88,101.83,8.70636168]
[1770018845555,12.93601069,101.88,101.84,8.70636168]
[1770018845770,4.22964901,101.86,101.82,12.40636168]
[1770018845979,4.22964901,101.86,101.82,8.70636168]
[1770018846958,4.22964901,101.84,101.8,36.00636168]
[1770018847274,4.22964901,101.84,101.8,39.70636168]
[1770018847575,12.93601069,101.86,101.81,8.70636168]
[1770018847782,4.07193095,101.84,101.8,36.00636168]
[1770018848697,4.07193095,101.84,101.78,4.27527085]
[1770018848698,12.77829263,101.82,101.77,12.40636168]
[1770018848879,4.07193095,101.82,101.78,8.70636168]
[1770018849057,4.07193095,101.81,101.77,8.70636168]
[1770018849260,4.07193095,101.8,101.76,8.70636168]
[1770018849484,12.77829263,101.8,101.75,12.40636168]
[1770018849679,12.77829263,101.79,101.74,39.70636168]
[1770018849878,4.07193095,101.79,101.76,8.70636168]
[1770018850186,8.70636168,101.79,101.74,39.70636168]
[1770018850483,4.07193095,101.78,101.74,39.70636168]
[1770018850655,4.07193095,101.78,101.74,27.3]
[1770018850656,4.07193095,101.77,101.74,27.3]
[1770018850861,4.07193095,101.76,101.72,8.70636168]
[1770018851061,4.27527085,101.81,101.7,3.7]
[1770018851062,12.77829263,101.75,101.7,12.40636168]
[1770018851461,4.07193095,101.75,101.71,8.70636168]
[1770018851663,4.07193095,101.75,101.72,8.70636168]
[1770018851856,4.07193095,101.76,101.72,8.70636168]
[1770018852295,4.07193095,101.76,101.73,8.70636168]
[1770018852581,4.07193095,101.76,101.72,8.70636168]
[1770018852882,12.77829263,101.76,101.71,8.70636168]
[1770018853178,4.07193095,101.8,101.75,12.40636168]
[1770018853385,4.07193095,101.8,101.76,8.70636168]
[1770018854381,4.07193095,101.78,101.74,8.70636168]
[1770018854763,12.77829263,101.81,101.76,12.40636168]
[1770018854970,4.07193095,101.8,101.76,8.70636168]
[1770018856280,62.7,101.82,101.76,12.40636168]
[1770018856281,12.77829263,101.81,101.76,12.40636168]
[1770018856482,4.07193095,101.81,101.77,8.70636168]
[1770018856868,4.07193095,101.84,101.8,8.70636168]
[1770018857078,4.07193095,101.84,101.81,8.70636168]
[1770018857564,4.07193095,101.84,101.8,12.40636168]
[1770018857785,4.07193095,101.84,101.81,8.70636168]
[1770018858089,4.07193095,101.86,101.82,8.70636168]
[1770018859476,4.07193095,101.86,101.82,12.40636168]
[1770018859669,4.07193095,101.88,101.83,8.70636168]
[1770018860484,4.07193095,101.88,101.84,8.70636168]
[1770018860659,4.07193095,101.88,101.83,3.7]
[1770018860660,4.07193095,101.88,101.83,12.40636168]
[1770018860863,12.77829263,101.88,101.83,12.40636168]
[1770018861765,4.07193095,101.88,101.83,12.40636168]
[1770018862077,4.07193095,101.88,101.84,8.70636168]
[1770018862284,4.07193095,101.87,101.83,8.70636168]
[1770018863499,4.07193095,101.87,101.84,8.70636168]
[1770018863898,4.07193095,101.87,101.83,12.40636168]
[1770018864503,4.07193095,101.85,101.79,3.7]
[1770018864694,4.07193095,101.85,101.81,8.70636168]
[1770018864889,4.07193095,101.83,101.79,8.70636168]
[1770018866392,4.07193095,101.83,101.79,8.68087315]
[1770018868897,4.07193095,101.81,101.76,3.7]
[1770018869210,4.07193095,101.8,101.76,8.68087315]
[1770018869391,75.4528041,101.83,101.78,8.68087315]
[1770018869595,4.07193095,101.82,101.78,8.68087315]
[1770018870093,4.07193095,101.81,101.77,8.68087315]
[1770018870298,4.07193095,101.82,101.79,8.68087315]
[1770018871208,4.07193095,101.82,101.78,8.68087315]
[1770018872816,4.07193095,101.81,101.77,3.7]
[1770018873011,4.07193095,101.81,101.77,12.38087315]
[1770018873830,12.7528041,101.83,101.78,12.38087315]
[1770018874114,4.07193095,101.83,101.79,8.68087315]
[1770018875490,4.07193095,101.85,101.81,8.68087315]
[1770018876498,4.07193095,101.85,101.82,8.68087315]
[1770018877837,8.68087315,101.87,101.82,8.68087315]
[1770018877838,12.77189511,101.87,101.82,8.68087315]
[1770018878122,4.09102196,101.86,101.82,8.68087315]
[1770018878435,4.09102196,101.88,101.85,8.68087315]
[1770018878724,8.68087315,101.89,101.83,0.28432314]
[1770018878899,8.68087315,101.89,101.82,27.44216157]
[1770018878900,4.09102196,101.87,101.82,31.0]
[1770018879102,4.09102196,101.87,101.83,8.68087315]
[1770018879302,4.09102196,101.85,101.81,8.96519629]
[1770018880806,4.09102196,101.86,101.82,8.68087315]
[1770018881223,12.77189511,101.86,101.81,12.66519629]
[1770018881416,4.09102196,101.86,101.82,8.68087315]
[1770018881724,12.77189511,101.86,101.81,12.66519629]
[1770018881923,4.09102196,101.86,101.82,8.68087315]
[1770018882224,4.09102196,101.86,101.82,12.38087315]
[1770018883814,4.09102196,101.85,101.79,27.3]
[1770018884015,4.09102196,101.83,101.79,8.68087315]
[1770018884517,4.09102196,101.83,101.79,12.38087315]
[1770018884723,4.09102196,101.85,101.8,12.38087315]
[1770018884928,4.09102196,101.85,101.81,8.68087315]
[1770018889739,66.79102196,101.85,101.81,8.68087315]
[1770018894926,62.7,101.85,101.81,8.68087315]
[1770018895127,4.28536885,101.84,101.81,8.68087315]
[1770018895447,4.28536885,101.84,101.8,12.38087315]
[1770018896435,4.28536885,101.84,101.81,8.68087315]
[1770018896752,4.27527085,101.87,101.83,3.7]
[1770018896753,66.98536885,101.87,101.83,3.7]
[1770018896930,4.28536885,101.86,101.83,3.7]
[1770018897130,4.28536885,101.86,101.82,12.38087315]
[1770018897438,4.28536885,101.85,101.81,12.38087315]
[1770018897646,4.28536885,101.84,101.8,12.66519629]
[1770018897837,4.28536885,101.84,101.8,12.38087315]
[1770018898455,4.28536885,101.83,101.79,39.68087315]
[1770018898649,12.966242,101.82,101.77,3.7]
[1770018898832,4.28536885,101.82,101.78,8.68087315]
[1770018900449,62.7,101.85,101.76,8.68087315]
[1770018900450,4.28536885,101.8,101.76,8.68087315]
[1770018900650,4.28536885,101.8,101.76,12.38087315]
[1770018900849,4.28536885,101.8,101.77,8.68087315]
[1770018901353,75.666242,101.85,101.8,3.7]
[1770018901533,4.28536885,101.88,101.84,8.68087315]
[1770018901731,4.28536885,101.88,101.85,8.68087315]
[1770018903152,4.28536885,101.88,101.84,8.68087315]
[1770018903534,4.28536885,101.88,101.85,8.68087315]
[1770018905436,0.2,101.91,101.87,3.7]
[1770018905649,4.48536885,101.91,101.88,8.68087315]
[1770018906054,12.966242,101.95,101.9,8.68087315]
[1770018906246,4.28536885,101.95,101.91,8.68087315]
[1770018907461,4.28536885,101.91,101.86,8.96519629]
[1770018907657,4.28536885,101.9,101.86,8.96519629]
[1770018907963,4.28536885,101.9,101.86,12.46519629]
[1770018908344,4.28536885,101.9,101.86,3.5]
[1770018908345,12.966242,101.9,101.86,3.5]
[1770018908549,12.966242,101.9,101.85,12.18087315]
[1770018908738,13.09304391,101.9,101.85,12.18087315]
[1770018909737,4.41217076,101.88,101.85,8.68087315]